fUST/lending_fUST_20250723
["ID","MTS","AMOUNT","RATE_DAILY","PERIOD"]
[374353979,1753278656645,-3959.67653516,0.00023,4]
[374353980,1753278656654,-15872.21103172,0.00023,10]
[374353982,1753278656663,-53012.00502597,0.00023,2]
[374353984,1753278656673,-160.0,0.00023,3]
[374353986,1753278656685,-12622.36869388,0.00023,3]
[374353988,1753278656696,-12622.36869388,0.00023,10]
[374353991,1753278656715,-160.0,0.00023,2]
[374353993,1753278656724,-160.0,0.00023,3]
[374353995,1753278656734,-160.0,0.00023,3]
[374353997,1753278656743,-160.0,0.00023,3]
[374353998,1753278656753,-160.0,0.00023,3]
[374354000,1753278656763,-840.06856235,0.00023,3]
[374354002,1753278656774,-160.0,0.00023,3]
[374354004,1753278656785,-160.0,0.00023,3]
[374354006,1753278656797,-214.67886746,0.00023,3]
[374354008,1753278656806,-215.84326551,0.00023,3]
[374354010,1753278656816,-160.0,0.00023,3]
[374354011,1753278656827,-526.15909479,0.00023,3]
[374354013,1753278656836,-160.0,0.00023,3]
[374354015,1753278656846,-476.696448,0.00023,3]
[374354017,1753278656854,-476.696448,0.00023,10]
[374354019,1753278656865,-160.0,0.00023,3]
[374354021,1753278656876,-1500.0,0.00023001,2]
[374354023,1753278656885,-2000.0,0.00023001,2]
[374354025,1753278656895,-1000.0,0.00023001,2]
[374354027,1753278656905,-2310.57,0.00023013,2]
[374354029,1753278656914,-151.0,0.00023013,2]
[374354031,1753278656923,-151.0,0.00023013,2]
[374354032,1753278656933,-7526.64,0.00023013,2]
[374354034,1753278656942,-1926.88,0.00023013,2]
[374354036,1753278656951,-1268.06,0.00023013,2]
[374354038,1753278656966,-621.61,0.00023013,2]
[374354040,1753278656976,-480.34,0.00023013,2]
[374354042,1753278656986,-460.0,0.00023013,2]
[374354044,1753278656996,-549.96,0.00023013,2]
[374354046,1753278657006,-460.0,0.00023013,2]
[374354048,1753278657015,-580.38,0.00023013,2]
[374354050,1753278657025,-460.0,0.00023013,2]
[374354052,1753278657035,-460.0,0.00023013,2]
[374354054,1753278657044,-961.09,0.00023013,2]
[374354056,1753278657055,-2054.53,0.00023013,2]
[374354058,1753278657064,-542.39,0.00023013,2]
[374354060,1753278657074,-460.0,0.00023013,2]
[374354062,1753278657083,-460.0,0.00023013,2]
[374354063,1753278657092,-484.64,0.00023013,2]
[374354065,1753278657101,-460.0,0.00023013,2]
[374354067,1753278657111,-3279.89,0.00023013,2]
[374354069,1753278657120,-595.63,0.00023013,2]
[374354071,1753278657130,-708.43,0.00023013,2]
[374354073,1753278657139,-1333.69,0.00023013,2]
[374354075,1753278657149,-10302.36,0.00023013,2]
[374354077,1753278657159,-553.39,0.00023013,2]
[374354079,1753278657169,-478.71,0.00023013,2]
[374354081,1753278657180,-460.0,0.00023013,2]
[374354083,1753278657190,-460.0,0.00023013,2]
[374354085,1753278657201,-2453.51,0.00023013,2]
[374354087,1753278657216,-2633.59,0.00023013,2]
[374354089,1753278657226,-536.74,0.00023013,2]
[374354091,1753278657238,-460.0,0.00023013,2]
[374354093,1753278657249,-2867.23,0.00023013,2]
[374354095,1753278657259,-460.0,0.00023013,2]
[374354097,1753278657271,-828.75,0.00023013,2]
[374354099,1753278657286,-264.71389374,0.00023013,2]
[374354101,1753278657297,-1093.38,0.00023013,2]
[374354103,1753278657308,-1266.0,0.00023013,2]
[374354105,1753278657318,-561.41,0.00023013,2]
[374354107,1753278657327,-204.0,0.00023014,7]
[374354108,1753278657339,-1000.0,0.00023021,2]
[374354110,1753278657349,-462.0,0.00023035,2]
[374354112,1753278657359,-1298.05,0.00023065,5]
[374354114,1753278657369,-462.0,0.00023084,2]
[374354116,1753278657379,-233.196896,0.00023099,7]
[374354118,1753278657389,-233.196896,0.00023099,7]
[374354120,1753278657400,-152.11147,0.000231,7]
[374354122,1753278657410,-151.0,0.000231,7]
[374354124,1753278657420,-166.910665,0.000231,7]
[374354126,1753278657429,-405.712595,0.000231,7]
[374354128,1753278657439,-405.712595,0.000231,7]
[374354130,1753278657448,-158.691522,0.000231,7]
[374354132,1753278657462,-158.691522,0.000231,7]
[374354134,1753278657471,-325.310964,0.000231,7]
[374354136,1753278657481,-325.310964,0.000231,7]
[374354137,1753278657490,-3449.9,0.000231,6]
[374354139,1753278657499,-5888.0,0.00023109,2]
[374354141,1753278657508,-800.0,0.00023109,2]
[374354143,1753278657517,-462.0,0.00023115,2]
[374354145,1753278657527,-800.0,0.00023144,2]
[374354147,1753278657536,-1298.05,0.00023165,2]
[374354149,1753278657546,-800.0,0.00023179,2]
[374354151,1753278657555,-246.961842,0.000232,7]
[374354160,1753278657661,-246.961842,0.000232,7]
[374354161,1753278657672,-151.581617,0.000232,7]
[374354162,1753278657682,-151.0,0.000232,7]
[374354163,1753278657692,-240.205155,0.000232,7]
[374354164,1753278657701,-151.0,0.000232,7]
[374354165,1753278657716,-151.0,0.000232,7]
[374354166,1753278657726,-161.214973,0.000232,7]
[374354167,1753278657736,-643.0,0.000232,2]
[374354168,1753278657746,-800.0,0.00023211,2]
[374354169,1753278657755,-153.0,0.00023233,2]
[374354170,1753278657766,-153.0,0.00023233,2]
[374354171,1753278657776,-153.0,0.00023233,2]
[374354172,1753278657786,-153.0,0.00023233,2]
[374354173,1753278657796,-153.0,0.00023233,2]
[374354174,1753278657807,-153.0,0.00023233,2]
[374354175,1753278657817,-800.0,0.00023257,2]
[374354176,1753278657829,-800.0,0.00023258,2]
[374354177,1753278657838,-1298.05,0.00023265,2]
[374354178,1753278657850,-151.0,0.00023287,7]
[374354180,1753278657860,-151.0,0.00023287,7]
[374354182,1753278657869,-151.0,0.00023287,7]
[374354183,1753278657878,-151.0,0.00023287,7]
[374354185,1753278657888,-151.0,0.00023287,7]
[374354187,1753278657898,-151.0,0.00023287,7]
[374354189,1753278657907,-151.0,0.00023287,7]
[374354191,1753278657917,-151.0,0.00023287,7]
[374354193,1753278657927,-2310.57,0.00023287,2]
[374354195,1753278657937,-169.684936,0.00023287,7]
[374354197,1753278657946,-169.684936,0.00023287,7]
[374354199,1753278657955,-7526.64,0.00023287,2]
[374354201,1753278657969,-1926.88,0.00023287,2]
[374354203,1753278657979,-407.376389,0.00023287,7]
[374354205,1753278657988,-407.376389,0.00023287,7]
[374354207,1753278657999,-400.0,0.00023287,3]
[374354209,1753278658008,-1268.06,0.00023287,2]
[374354211,1753278658023,-621.61,0.00023287,2]
[374354213,1753278658033,-480.34,0.00023287,2]
[374354215,1753278658043,-198.39848728,0.00023287,2]
[374354217,1753278658052,-549.96,0.00023287,2]
[374354219,1753278658061,-460.0,0.00023287,2]
[374354221,1753278658071,-580.38,0.00023287,2]
[374354223,1753278658080,-460.0,0.00023287,2]
[374354224,1753278658090,-460.0,0.00023287,2]
[374354225,1753278658099,-961.09,0.00023287,2]
[374354226,1753278658108,-2054.53,0.00023287,2]
[374354227,1753278658118,-542.39,0.00023287,2]
[374354228,1753278658127,-460.0,0.00023287,2]
[374354229,1753278658137,-260.90426479,0.00023287,2]
[374354230,1753278658146,-484.64,0.00023287,2]
[374354231,1753278658156,-460.0,0.00023287,2]
[374354232,1753278658166,-3279.89,0.00023287,2]
[374354233,1753278658176,-595.63,0.00023287,2]
[374354234,1753278658185,-708.43,0.00023287,2]
[374354235,1753278658195,-1333.69,0.00023287,2]
[374354236,1753278658205,-10302.36,0.00023287,2]
[374354237,1753278658219,-553.39,0.00023287,2]
[374354238,1753278658229,-478.71,0.00023287,2]
[374354239,1753278658239,-460.0,0.00023287,2]
[374354240,1753278658248,-460.0,0.00023287,2]
[374354241,1753278658259,-2453.51,0.00023287,2]
[374354242,1753278658269,-2633.59,0.00023287,2]
[374354243,1753278658279,-536.74,0.00023287,2]
[374354244,1753278658288,-460.0,0.00023287,2]
[374354245,1753278658298,-2867.23,0.00023287,2]
[374354246,1753278658308,-564.94,0.00023287,2]
[374354247,1753278658317,-828.75,0.00023287,2]
[374354248,1753278658327,-1093.38,0.00023287,2]
[374354249,1753278658336,-1266.0,0.00023287,2]
[374354250,1753278658346,-561.41,0.00023287,2]
[374354251,1753278658355,-9972.34621077,0.00023288,2]
[374354252,1753278658366,-592.327966,0.00023288,7]
[374354254,1753278658375,-592.327966,0.00023288,7]
[374354256,1753278658384,-5984.392739,0.00023288,7]
[374354258,1753278658394,-5984.392739,0.00023288,7]
[374354260,1753278658404,-151.0,0.00023288,2]
[374354262,1753278658413,-275.38754775,0.00023288,2]
[374354264,1753278658423,-151.0,0.00023288,2]
[374354266,1753278658432,-151.0,0.00023288,2]
[374354268,1753278658441,-151.0,0.00023288,2]
[374354270,1753278658451,-151.0,0.00023288,2]
[374354272,1753278658466,-151.0,0.00023288,2]
[374354274,1753278658475,-151.0,0.00023288,2]
[374354276,1753278658485,-500.0,0.00023288,2]
[374354278,1753278658494,-151.58359639,0.00023288,2]
[374354280,1753278658504,-151.0,0.00023288,2]
[374354282,1753278658514,-500.0,0.00023288,2]
[374354284,1753278658523,-151.0,0.00023288,2]
[374354286,1753278658532,-500.0,0.00023288,2]
[374354288,1753278658541,-198.69371496,0.00023288,2]
[374354290,1753278658551,-151.0,0.00023288,2]
[374354292,1753278658560,-151.0,0.00023288,2]
[374354294,1753278658570,-151.0,0.00023288,2]
[374354296,1753278658579,-500.0,0.00023288,2]
[374354298,1753278658589,-151.0,0.00023288,2]
[374354300,1753278658598,-151.0,0.00023288,2]
[374354302,1753278658608,-257.47516588,0.00023288,2]
[374354304,1753278658617,-1232.0,0.00023288,2]
[374354306,1753278658627,-784.0,0.00023288,2]
[374354308,1753278658636,-784.0,0.00023288,2]
[374354310,1753278658646,-500.0,0.00023288,2]
[374354312,1753278658656,-151.0,0.00023288,2]
[374354314,1753278658665,-151.0,0.00023288,2]
[374354316,1753278658675,-151.0,0.00023288,2]
[374354318,1753278658685,-500.0,0.00023288,2]
[374354320,1753278658694,-151.0,0.00023288,2]
[374354321,1753278658703,-151.0,0.00023288,2]
[374354323,1753278658717,-175.014685,0.000233,7]
[374354325,1753278658727,-175.014685,0.000233,7]
[374354327,1753278658735,-704.297764,0.000233,7]
[374354329,1753278658745,-151.0,0.000233,7]
[374354331,1753278658754,-14285.35,0.000233,7]
[374354333,1753278658763,-2946.59,0.000233,7]
[374354335,1753278658772,-2299.97,0.000233,2]
[374354337,1753278658782,-800.0,0.000233,2]
[374354339,1753278658791,-12622.36869388,0.000233,7]
[374354341,1753278658801,-354.0965,0.000233,7]
[374354343,1753278658811,-322.621255,0.000233,7]
[374354344,1753278658820,-1401.0,0.00023306,2]
[374354346,1753278658831,-160.0,0.00023313,4]
[374354348,1753278658842,-660.0,0.00023316,2]
[374354350,1753278658851,-800.0,0.00023349,2]
[374354352,1753278658861,-800.0,0.00023353,2]
[374354355,1753278658871,-1298.05,0.00023365,3]
[374354357,1753278658881,-800.0,0.00023373,2]
[374354358,1753278658892,-306.0,0.00023373,2]
[374354360,1753278658902,-151.0,0.00023394,7]
[374354362,1753278658911,-167.4724735,0.00023397,2]
[374354364,1753278658921,-162.866,0.000234,7]
[374354366,1753278658931,-9794.1847153,0.000234,2]
[374354368,1753278658940,-628.295719,0.000234,7]
[374354370,1753278658949,-628.295719,0.000234,7]
[374354372,1753278658963,-752.21695496,0.000234,2]
[374354374,1753278658972,-2828.394855,0.000234,7]
[374354376,1753278658981,-2828.394855,0.000234,7]
[374354378,1753278658990,-680.710666,0.000234,7]
[374354380,1753278658999,-680.710666,0.000234,7]
[374354382,1753278659008,-151.0,0.000234,7]
[374354384,1753278659017,-151.0,0.000234,7]
[374354386,1753278659027,-3449.9,0.00023433,6]
[374354388,1753278659036,-693.7632281,0.00023452,2]
[374354390,1753278659046,-429.674968,0.00023452,2]
[374354392,1753278659056,-429.674968,0.00023452,2]
[374354394,1753278659065,-429.674968,0.00023452,2]
[374354396,1753278659075,-429.674968,0.00023452,2]
[374354398,1753278659085,-429.674968,0.00023452,2]
[374354400,1753278659095,-429.674968,0.00023452,2]
[374354402,1753278659105,-429.674968,0.00023452,2]
[374354404,1753278659115,-429.674968,0.00023452,2]
[374354406,1753278659124,-859.349936,0.00023452,2]
[374354408,1753278659133,-429.674968,0.00023452,2]
[374354410,1753278659143,-429.674968,0.00023452,2]
[374354412,1753278659153,-429.674968,0.00023452,2]
[374354414,1753278659163,-429.674968,0.00023452,2]
[374354416,1753278659172,-429.674968,0.00023452,2]
[374354418,1753278659182,-1298.05,0.00023465,2]
[374354420,1753278659192,-257.26374,0.00023485,7]
[374354422,1753278659203,-447.903309,0.00023485,7]
[374354424,1753278659217,-447.903309,0.00023485,7]
[374354426,1753278659226,-151.0,0.00023485,7]
[374354428,1753278659236,-354.0965,0.00023499,2]
[374354430,1753278659246,-322.621255,0.00023499,2]
[374354432,1753278659255,-1096.0,0.000235,5]
[374354434,1753278659264,-300.0,0.00023521,2]
[374354436,1753278659274,-151.0,0.00023524,7]
[374354438,1753278659283,-2500.0,0.00023549,2]
[374354440,1753278659295,-246.961842,0.00023561,7]
[374354442,1753278659304,-246.961842,0.00023561,7]
[374354444,1753278659314,-151.0,0.00023561,7]
[374354446,1753278659324,-151.0,0.00023561,7]
[374354448,1753278659333,-151.0,0.00023561,7]
[374354450,1753278659343,-151.0,0.00023561,7]
[374354452,1753278659352,-233.196896,0.00023561,7]
[374354454,1753278659362,-233.196896,0.00023561,7]
[374354456,1753278659371,-153.443753,0.00023561,7]
[374354458,1753278659380,-153.443753,0.00023561,7]
[374354460,1753278659390,-151.0,0.00023561,7]
[374354462,1753278659399,-2310.57,0.00023561,2]
[374354464,1753278659409,-7526.64,0.00023561,2]
[374354466,1753278659418,-1926.88,0.00023561,2]
[374354468,1753278659428,-1268.06,0.00023561,2]
[374354470,1753278659438,-621.61,0.00023561,2]
[374354472,1753278659448,-480.34,0.00023561,2]
[374354474,1753278659458,-549.96,0.00023561,2]
[374354476,1753278659471,-272.47,0.00023561,2]
[374354478,1753278659481,-272.47,0.00023561,2]
[374354480,1753278659490,-272.47,0.00023561,2]
[374354482,1753278659500,-272.47,0.00023561,2]
[374354484,1753278659510,-272.47,0.00023561,2]
[374354486,1753278659519,-272.47,0.00023561,2]
[374354488,1753278659528,-151.0,0.00023561,7]
[374354490,1753278659538,-272.47,0.00023561,2]
[374354492,1753278659547,-272.47,0.00023561,2]
[374354504,1753278659649,-1058.059424,0.00023561,7]
[374354506,1753278659658,-272.47,0.00023561,2]
[374354508,1753278659667,-272.47,0.00023561,2]
[374354510,1753278659676,-272.47,0.00023561,2]
[374354512,1753278659686,-272.47,0.00023561,2]
[374354514,1753278659695,-272.47,0.00023561,2]
[374354516,1753278659704,-272.47,0.00023561,2]
[374354518,1753278659717,-272.47,0.00023561,2]
[374354520,1753278659726,-272.47,0.00023561,2]
[374354522,1753278659735,-272.47,0.00023561,2]
[374354524,1753278659744,-151.0,0.00023561,7]
[374354526,1753278659753,-1058.059424,0.00023561,7]
[374354527,1753278659762,-460.0,0.00023561,2]
[374354529,1753278659772,-151.0,0.00023561,7]
[374354531,1753278659781,-580.38,0.00023561,2]
[374354533,1753278659791,-318.29699781,0.00023561,2]
[374354535,1753278659802,-460.0,0.00023561,2]
[374354537,1753278659813,-961.09,0.00023561,2]
[374354539,1753278659822,-2054.53,0.00023561,2]
[374354541,1753278659831,-542.39,0.00023561,2]
[374354542,1753278659841,-460.0,0.00023561,2]
[374354544,1753278659851,-484.64,0.00023561,2]
[374354546,1753278659860,-165.955037,0.00023561,7]
[374354548,1753278659870,-460.0,0.00023561,2]
[374354550,1753278659879,-165.955037,0.00023561,7]
[374354553,1753278659891,-3279.89,0.00023561,2]
[374354554,1753278659902,-595.63,0.00023561,2]
[374354556,1753278659911,-383.736464,0.00023561,7]
[374354558,1753278659920,-383.736464,0.00023561,7]
[374354560,1753278659929,-708.43,0.00023561,2]
[374354562,1753278659938,-151.0,0.00023561,7]
[374354564,1753278659948,-151.0,0.00023561,7]
[374354566,1753278659958,-1333.69,0.00023561,2]
[374354568,1753278659971,-10302.36,0.00023561,2]
[374354570,1753278659980,-553.39,0.00023561,2]
[374354572,1753278659990,-151.217932,0.00023561,7]
[374354574,1753278659999,-478.71,0.00023561,2]
[374354576,1753278660008,-460.0,0.00023561,2]
[374354578,1753278660018,-272.79014163,0.00023561,2]
[374354580,1753278660028,-2453.51,0.00023561,2]
[374354582,1753278660039,-2633.59,0.00023561,2]
[374354584,1753278660050,-536.74,0.00023561,2]
[374354586,1753278660061,-460.0,0.00023561,2]
[374354588,1753278660071,-151.0,0.00023561,7]
[374354590,1753278660082,-2867.23,0.00023561,2]
[374354592,1753278660093,-828.75,0.00023561,2]
[374354593,1753278660103,-1093.38,0.00023561,2]
[374354594,1753278660113,-1266.0,0.00023561,2]
[374354595,1753278660123,-561.41,0.00023561,2]
[374354596,1753278660133,-151.25419334,0.00023562,2]
[374354597,1753278660143,-277.76240389,0.00023562,2]
[374354598,1753278660152,-151.0,0.00023562,2]
[374354599,1753278660162,-151.0,0.00023562,2]
[374354600,1753278660172,-151.0,0.00023562,2]
[374354601,1753278660182,-151.0,0.00023562,2]
[374354602,1753278660191,-500.0,0.00023562,2]
[374354604,1753278660201,-151.0,0.00023562,2]
[374354606,1753278660217,-500.0,0.00023562,2]
[374354608,1753278660227,-151.0,0.00023562,2]
[374354610,1753278660236,-500.0,0.00023562,2]
[374354612,1753278660245,-151.0,0.00023562,2]
[374354614,1753278660255,-151.0,0.00023562,2]
[374354616,1753278660266,-500.0,0.00023562,2]
[374354618,1753278660275,-151.0,0.00023562,2]
[374354620,1753278660286,-151.0,0.00023562,2]
[374354622,1753278660295,-1232.0,0.00023562,2]
[374354624,1753278660305,-784.0,0.00023562,2]
[374354626,1753278660315,-784.0,0.00023562,2]
[374354628,1753278660325,-500.0,0.00023562,2]
[374354630,1753278660335,-151.0,0.00023562,2]
[374354632,1753278660345,-151.0,0.00023562,2]
[374354634,1753278660356,-151.92937431,0.00023562,2]
[374354636,1753278660366,-500.0,0.00023562,2]
[374354638,1753278660377,-199.67216678,0.00023562,2]
[374354640,1753278660387,-151.0,0.00023562,2]
[374354642,1753278660396,-1298.05,0.00023565,6]
[374354644,1753278660406,-1500.0,0.00023568,2]
[374354646,1753278660415,-621.69907411,0.00023573,2]
[374354648,1753278660425,-500.0,0.00023573,2]
[374354650,1753278660434,-234.9174,0.00023581,7]
[374354651,1753278660444,-151.0,0.00023581,7]
[374354653,1753278660453,-1401.0,0.00023581,2]
[374354655,1753278660471,-151.0,0.000236,7]
[374354657,1753278660482,-151.0,0.000236,7]
[374354659,1753278660492,-151.0,0.000236,7]
[374354661,1753278660501,-151.0,0.000236,7]
[374354663,1753278660511,-151.0,0.000236,7]
[374354665,1753278660520,-151.0,0.000236,7]
[374354667,1753278660530,-1348.84,0.000236,7]
[374354669,1753278660540,-60055.04,0.000236,2]
[374354671,1753278660550,-151.0,0.000236,7]
[374354673,1753278660560,-256.205885,0.000236,7]
[374354675,1753278660569,-256.205885,0.000236,7]
[374354677,1753278660580,-220.109416,0.00023621,7]
[374354679,1753278660589,-220.109416,0.00023621,7]
[374354681,1753278660599,-151.0,0.00023624,7]
[374354683,1753278660609,-189.268702,0.00023624,7]
[374354685,1753278660619,-189.268702,0.00023624,7]
[374354687,1753278660628,-158.691522,0.00023624,7]
[374354689,1753278660638,-158.691522,0.00023624,7]
[374354691,1753278660648,-325.310964,0.00023624,7]
[374354693,1753278660657,-325.310964,0.00023624,7]
[374354695,1753278660667,-151.0,0.00023625,7]
[374354697,1753278660677,-185.0,0.00023625,7]
[374354699,1753278660686,-648.0,0.00023662,2]
[374354701,1753278660696,-2157.0,0.00023662,2]
[374354703,1753278660706,-969.0,0.00023662,2]
[374354705,1753278660722,-1298.05,0.00023665,5]
[374354707,1753278660734,-354.0965,0.00023725,7]
[374354709,1753278660744,-322.621255,0.00023725,7]
[374354710,1753278660754,-167.4724735,0.00023726,2]
[374354712,1753278660765,-1315.9189583,0.00023748,9]
[374354714,1753278660774,-151.0,0.00023751,7]
[374354716,1753278660785,-1298.05,0.00023765,5]
[374354718,1753278660798,-3449.9,0.00023766,6]
[374354720,1753278660808,-1401.0,0.00023767,2]
[374354722,1753278660819,-250.0,0.00023787,2]
[374354724,1753278660831,-567.0,0.00023788,2]
[374354726,1753278660841,-151.0,0.00023819,2]
[374354728,1753278660851,-151.0,0.00023819,2]
[374354730,1753278660861,-151.0,0.00023835,7]
[374354732,1753278660870,-151.0,0.00023835,7]
[374354734,1753278660879,-405.712595,0.00023835,7]
[374354736,1753278660889,-405.712595,0.00023835,7]
[374354738,1753278660898,-151.0,0.00023835,7]
[374354740,1753278660907,-311.005301,0.00023835,7]
[374354742,1753278660914,-311.005301,0.00023835,7]
[374354744,1753278660922,-151.0,0.00023835,7]
[374354746,1753278660931,-151.0,0.00023835,7]
[374354748,1753278660939,-592.327966,0.00023835,7]
[374354750,1753278660950,-592.327966,0.00023835,7]
[374354752,1753278660959,-151.0,0.00023835,7]
[374354754,1753278660974,-2310.57,0.00023835,2]
[374354756,1753278660983,-158.848786,0.00023835,7]
[374354758,1753278660992,-158.848786,0.00023835,7]
[374354760,1753278661003,-5984.392739,0.00023835,7]
[374354762,1753278661015,-5984.392739,0.00023835,7]
[374354764,1753278661025,-7526.64,0.00023835,2]
[374354766,1753278661034,-1926.88,0.00023835,2]
[374354768,1753278661044,-1268.06,0.00023835,2]
[374354770,1753278661054,-621.61,0.00023835,2]
[374354772,1753278661063,-480.34,0.00023835,2]
[374354774,1753278661073,-549.96,0.00023835,2]
[374354776,1753278661083,-272.47,0.00023835,2]
[374354778,1753278661093,-4046.37427529,0.00023835,7]
[374354780,1753278661103,-460.0,0.00023835,2]
[374354782,1753278661112,-580.38,0.00023835,2]
[374354784,1753278661121,-301.48087753,0.00023835,2]
[374354786,1753278661131,-961.09,0.00023835,2]
[374354788,1753278661140,-2054.53,0.00023835,2]
[374354790,1753278661150,-542.39,0.00023835,2]
[374354792,1753278661159,-460.0,0.00023835,2]
[374354794,1753278661169,-484.64,0.00023835,2]
[374354796,1753278661178,-460.0,0.00023835,2]
[374354797,1753278661188,-3279.89,0.00023835,2]
[374354799,1753278661197,-595.63,0.00023835,2]
[374354801,1753278661208,-708.43,0.00023835,2]
[374354803,1753278661223,-1333.69,0.00023835,2]
[374354805,1753278661232,-10302.36,0.00023835,2]
[374354808,1753278661243,-553.39,0.00023835,2]
[374354809,1753278661252,-478.71,0.00023835,2]
[374354811,1753278661261,-460.0,0.00023835,2]
[374354813,1753278661271,-2453.51,0.00023835,2]
[374354815,1753278661281,-2633.59,0.00023835,2]
[374354817,1753278661290,-536.74,0.00023835,2]
[374354819,1753278661299,-460.0,0.00023835,2]
[374354821,1753278661310,-2867.23,0.00023835,2]
[374354823,1753278661320,-828.75,0.00023835,2]
[374354825,1753278661330,-1093.38,0.00023835,2]
[374354827,1753278661339,-1266.0,0.00023835,2]
[374354829,1753278661349,-561.41,0.00023835,2]
[374354831,1753278661359,-151.0,0.00023836,2]
[374354833,1753278661368,-171.98864679,0.00023836,2]
[374354835,1753278661377,-151.0,0.00023836,2]
[374354837,1753278661387,-500.0,0.00023836,2]
[374354839,1753278661397,-255.55352173,0.00023836,2]
[374354850,1753278661491,-500.0,0.00023836,2]
[374354852,1753278661502,-152.52494706,0.00023836,2]
[374354854,1753278661511,-266.4365031,0.00023836,2]
[374354856,1753278661521,-151.0,0.00023836,2]
[374354858,1753278661531,-500.0,0.00023836,2]
[374354860,1753278661541,-198.0,0.00023836,2]
[374354862,1753278661551,-151.0,0.00023836,2]
[374354864,1753278661561,-1232.0,0.00023836,2]
[374354866,1753278661570,-784.0,0.00023836,2]
[374354868,1753278661579,-784.0,0.00023836,2]
[374354870,1753278661588,-500.0,0.00023836,2]
[374354872,1753278661598,-246.04954172,0.00023836,2]
[374354874,1753278661608,-292.0,0.00023836,2]
[374354876,1753278661618,-152.33024982,0.00023836,2]
[374354877,1753278661627,-407.376389,0.00023836,7]
[374354879,1753278661636,-407.376389,0.00023836,7]
[374354881,1753278661647,-760.0,0.00023864,2]
[374354883,1753278661656,-1298.05,0.00023865,6]
[374354886,1753278661666,-354.0965,0.00023877,9]
[374354888,1753278661675,-476.41986753,0.000239,2]
[374354890,1753278661685,-354.0965,0.000239,10]
[374354892,1753278661695,-322.621255,0.000239,10]
[374354894,1753278661705,-224.39,0.00023921,2]
[374354896,1753278661719,-160.0,0.00023921,5]
[374354898,1753278661728,-151.0,0.00023933,7]
[374354900,1753278661738,-151.0,0.00023933,7]
[374354902,1753278661749,-231.28369723,0.0002394,2]
[374354904,1753278661759,-175.014685,0.00023942,7]
[374354906,1753278661768,-175.014685,0.00023942,7]
[374354908,1753278661778,-704.297764,0.00023942,7]
[374354910,1753278661788,-354.0965,0.00023947,3]
[374354912,1753278661798,-322.621255,0.00023947,3]
[374354914,1753278661813,-1298.05,0.00023965,6]
[374354916,1753278661823,-150.0,0.00023968,2]
[374354918,1753278661833,-216.862,0.00023968,2]
[374354920,1753278661843,-250.0,0.00023968,2]
[374354922,1753278661854,-150.0,0.00023968,2]
[374354924,1753278661864,-260.084,0.00023968,2]
[374354926,1753278661874,-217.664,0.00023968,2]
[374354928,1753278661884,-1401.0,0.00023994,2]
[374354930,1753278661894,-164.65631797,0.00024,14]
[374354932,1753278661906,-358.89996586,0.00024,7]